bitfinex/quotes_SOLUSD_20260224
["timestamp","ask_amount","ask_price","bid_price","bid_amount"]
[1771943479043,150.56691715,76.378,76.321,0.79092147]
[1771943479044,11.77441065,76.36,76.321,0.79092147]
[1771943479243,11.77441065,76.35,76.321,0.79092147]
[1771943479543,45.82471391,76.378,76.311,13.10427068]
[1771943479544,11.77441065,76.34,76.311,13.10427068]
[1771943479925,13.09792005,76.348,76.312,0.79092147]
[1771943480338,11.77441065,76.35,76.321,0.79092147]
[1771943480721,13.09704084,76.354,76.321,0.79092147]
[1771943480937,11.77441065,76.35,76.321,0.79092147]
[1771943481317,13.09704084,76.354,76.311,13.10427068]
[1771943481318,11.77441065,76.34,76.311,13.10427068]
[1771943481537,11.77441065,76.36,76.331,0.79092147]
[1771943481934,11.77441065,76.37,76.331,0.79092147]
[1771943482249,13.09131826,76.387,76.351,0.79092147]
[1771943482621,13.09131826,76.387,76.314,3.69383402]
[1771943482622,11.77441065,76.38,76.341,0.79092147]
[1771943483030,0.64212743,76.386,76.35,11.77441065]
[1771943483249,11.77441065,76.37,76.331,0.79092147]
[1771943483572,11.77441065,76.36,76.321,0.79092147]
[1771943483850,12.41683328,76.36,76.321,0.79092147]
[1771943484047,0.64242263,76.36,76.321,0.79092147]
[1771943484220,46.47283603,76.369,76.321,0.79092147]
[1771943484422,46.47283603,76.369,76.331,0.79092147]
[1771943484820,45.8301143,76.369,76.331,0.79092147]
[1771943485025,11.77441065,76.38,76.341,0.74083516]
[1771943485225,13.09106142,76.388,76.351,0.74083516]
[1771943485433,11.77441065,76.38,76.351,0.74083516]
[1771943485634,46.46231367,76.388,76.32,45.85947593]
[1771943485635,13.09190518,76.384,76.353,0.74083516]
[1771943485849,11.77441065,76.39,76.361,0.74083516]
[1771943486043,24.86528702,76.39,76.361,0.74083516]
[1771943486236,11.77441065,76.38,76.349,0.74083516]
[1771943486445,11.77441065,76.38,76.35,13.09757694]
[1771943486942,11.77441065,76.38,76.344,13.09856886]
[1771943487151,11.77441065,76.35,76.311,13.10427068]
[1771943487340,3.69383402,76.372,76.311,13.10427068]
[1771943487341,11.77441065,76.36,76.321,0.74083516]
[1771943487546,0.64416032,76.363,76.321,0.74083516]
[1771943487729,0.64416032,76.363,76.322,13.10238201]
[1771943487730,11.77441065,76.35,76.322,13.10238201]
[1771943488144,45.83611623,76.359,76.31,0.1]
[1771943488145,11.77441065,76.34,76.31,0.1]
[1771943488449,11.77441065,76.34,76.311,13.84510584]
[1771943488651,0.64444191,76.351,76.312,0.74083516]
[1771943488834,11.77441065,76.35,76.312,0.74083516]
[1771943489239,13.09603321,76.359,76.321,0.74083516]
[1771943489550,11.77441065,76.35,76.321,0.74083516]
[1771943490050,11.77441065,76.35,76.323,0.74083516]
[1771943490649,11.77441065,76.35,76.322,13.10238201]
[1771943490650,13.09178283,76.384,76.341,0.74083516]
[1771943490954,11.77441065,76.4,76.361,0.74083516]
[1771943491171,12.41968232,76.38,76.341,0.74083516]
[1771943491330,11.77441065,76.37,76.332,0.74083516]
[1771943491536,0.64527167,76.379,76.332,0.74083516]
[1771943491831,0.64553867,76.369,76.33,11.77441065]
[1771943492047,11.77441065,76.35,76.314,0.74083516]
[1771943492226,13.09620471,76.358,76.321,0.74083516]
[1771943492427,0.64553867,76.349,76.313,13.8447624]
[1771943492645,0.64580278,76.357,76.321,0.74083516]
[1771943492958,11.77441065,76.33,76.31,0.1]
[1771943493146,11.77441065,76.34,76.31,13.20431277]
[1771943493353,0.64580278,76.349,76.311,0.74083516]
[1771943493656,11.77441065,76.35,76.311,0.74083516]
[1771943494358,11.77441065,76.33,76.31,0.1]
[1771943494537,11.77441065,76.32,76.3,59.0]
[1771943494943,11.77441065,76.31,76.29,0.1]
[1771943495250,11.77441065,76.3,76.28,0.1]
[1771943495448,11.77441065,76.28,76.26,0.1]
[1771943495764,11.77441065,76.29,76.261,0.74083516]
[1771943496131,11.77441065,76.29,76.26,0.1]
[1771943496527,11.77441065,76.28,76.26,0.1]
[1771943497231,11.77441065,76.28,76.219,15.96238603]
[1771943497232,0.24737583,76.269,76.239,0.235126]
[1771943497431,11.81281893,76.25,76.219,15.96238603]
[1771943497643,11.81281893,76.24,76.219,15.96238603]
[1771943497842,11.81281893,76.23,76.219,15.96238603]
[1771943498057,0.14801797,76.282,76.22,0.74083516]
[1771943498353,11.81281893,76.27,76.231,0.74083516]
[1771943498532,45.8902044,76.269,76.231,0.74083516]
[1771943498729,45.8902044,76.269,76.219,15.96238603]
[1771943498730,11.81281893,76.25,76.219,15.96238603]
[1771943499253,45.8902044,76.269,76.219,15.96238603]
[1771943499254,11.81281893,76.23,76.219,10.67241755]
[1771943499454,11.81281893,76.24,76.219,10.67241755]
[1771943499659,0.14926373,76.226,76.163,0.74083516]
[1771943499855,11.81281893,76.19,76.163,0.74083516]
[1771943500039,11.81281893,76.18,76.151,0.74083516]
[1771943500237,11.81281893,76.2,76.161,0.74083516]
[1771943500553,11.81281893,76.2,76.105,52.5586996]
[1771943500554,13.12008816,76.219,76.181,0.74083516]
[1771943500944,11.81281893,76.21,76.181,0.74083516]
[1771943501340,11.81281893,76.19,76.158,0.74083516]
[1771943501760,11.81281893,76.2,76.161,0.74083516]
[1771943502150,13.12008816,76.219,76.181,0.74083516]
[1771943502356,11.81281893,76.21,76.181,0.74083516]
[1771943502558,11.81281893,76.21,76.183,0.74083516]
[1771943502762,11.81281893,76.21,76.171,0.74083516]
[1771943503858,11.81281893,76.21,76.15,32.8296571]
[1771943503859,11.81281893,76.19,76.161,0.74083516]
[1771943504559,11.81281893,76.19,76.122,52.54712086]
[1771943504560,13.12697725,76.179,76.128,0.74083516]
[1771943504763,11.81281893,76.16,76.14,0.74083516]
[1771943504962,0.15225244,76.199,76.14,0.74083516]
[1771943505259,11.81281893,76.19,76.161,0.74083516]
[1771943505441,11.81281893,76.18,76.141,0.74083516]
[1771943505635,45.93175853,76.2,76.151,0.74083516]
[1771943505636,11.81281893,76.19,76.151,0.74083516]
[1771943506258,11.81281893,76.18,76.141,0.74083516]
[1771943506446,11.81281893,76.17,76.141,0.74083516]
[1771943506644,6.12340877,76.168,76.141,0.74083516]
[1771943506846,11.81281893,76.17,76.104,56.25306392]
[1771943506847,13.1252543,76.189,76.151,0.74083516]
[1771943507162,13.12396895,76.197,76.161,0.74083516]
[1771943507748,13.12396895,76.197,76.151,0.74083516]
[1771943507749,11.81281893,76.19,76.151,0.74083516]
[1771943508059,56.17987941,76.211,76.14,0.74083516]
[1771943508060,11.81281893,76.17,76.14,0.74083516]
[1771943508263,11.81281893,76.18,76.141,0.74083516]
[1771943508642,11.81281893,76.17,76.141,0.74083516]
[1771943508842,11.81281893,76.17,76.143,0.74083516]
[1771943509042,11.81281893,76.18,76.143,0.74083516]
[1771943509238,11.81281893,76.17,76.134,13.13463391]
[1771943509542,11.81281893,76.17,76.135,0.74083516]
[1771943509859,11.81281893,76.16,76.12,0.74083516]
[1771943510168,11.81281893,76.13,76.087,0.235126]
[1771943510387,0.15510621,76.129,76.088,13.1426769]
[1771943510664,13.13732445,76.119,76.089,0.74083516]
[1771943511177,11.81281893,76.11,76.087,0.235126]
[1771943511345,11.81281893,76.1,76.087,0.235126]
[1771943511544,0.78875253,76.096,76.028,16.2307023]
[1771943511744,11.81281893,76.04,76.028,1e-08]
[1771943511953,3.69383402,76.037,75.94,11.81281893]
[1771943512251,14.47398178,76.097,75.9,64.51329938]
[1771943512252,335.00177353,76.119,76.02,11.81281893]
[1771943512456,335.00177353,76.119,76.01,11.81281893]
[1771943512457,3.69383402,76.071,76.01,11.81281893]
[1771943512646,11.81281893,76.07,76.031,13.15252988]
[1771943512853,52.54394027,76.127,76.05,11.81281893]
[1771943513059,11.81281893,76.08,76.04,11.81281893]
[1771943513368,11.81281893,76.07,76.031,46.0338546]
[1771943513577,11.81281893,76.11,76.06,11.81281893]
[1771943513754,45.97519966,76.128,76.034,3.69383402]
[1771943513755,45.97519966,76.128,76.071,0.79915527]
[1771943513951,11.81281893,76.11,76.071,0.79915527]
[1771943514141,11.81281893,76.1,76.071,0.79915527]
[1771943514346,45.97519966,76.128,76.051,0.79915527]
[1771943514347,11.81281893,76.08,76.051,0.79915527]
[1771943514673,11.81281893,76.08,76.041,0.79915527]
[1771943514858,45.9987646,76.089,76.041,0.79915527]
[1771943515044,11.81281893,76.08,76.043,0.79915527]
[1771943515244,11.81281893,76.09,76.051,0.79915527]
[1771943515655,11.81281893,76.11,76.07,11.81281893]
[1771943515852,11.81281893,76.12,76.071,0.79915527]
[1771943516149,13.13508117,76.132,76.042,269.5878593]
[1771943516150,321.80948873,76.132,76.06,11.81281893]
[1771943516463,11.81281893,76.12,76.071,0.79915527]
[1771943516767,52.52936386,76.148,76.073,0.79915527]
[1771943516768,11.81281893,76.11,76.073,0.79915527]
[1771943517069,11.81281893,76.12,76.073,0.79915527]
[1771943517370,11.81281893,76.12,76.081,0.79915527]
[1771943517549,11.81281893,76.1,76.065,0.79915527]
[1771943517875,11.81281893,76.1,76.019,52.61810505]
[1771943517876,11.81281893,76.08,76.046,0.79915527]
[1771943518165,11.81281893,76.07,76.046,0.79915527]
[1771943518542,3.69383402,76.125,76.046,0.79915527]
[1771943518765,3.69383402,76.125,76.053,0.79915527]
[1771943518766,13.14077714,76.099,76.053,0.79915527]
[1771943518942,13.14077714,76.099,76.06,12.6119742]
[1771943519143,11.81281893,76.09,76.052,13.14889812]
[1771943519354,11.81281893,76.09,76.053,0.79915527]
[1771943519558,11.81281893,76.07,76.041,0.79915527]
[1771943519770,11.81281893,76.08,76.041,0.79915527]
[1771943520075,11.81281893,76.09,76.041,0.79915527]
[1771943520253,11.81281893,76.07,76.041,0.79915527]
[1771943520778,11.81281893,76.08,76.043,0.79915527]
[1771943520957,11.81281893,76.09,76.043,0.79915527]
[1771943521152,11.81281893,76.08,76.043,0.79915527]
[1771943521672,11.81281893,76.08,76.04,11.81281893]
[1771943521860,11.81281893,76.08,76.041,0.79915527]
[1771943522578,11.81281893,76.07,76.041,0.79915527]
[1771943522748,13.14941682,76.049,76.008,0.79915527]
[1771943522954,11.81281893,76.06,76.021,0.79915527]
[1771943523168,11.81281893,76.05,76.01,0.79915527]
[1771943523370,11.81281893,76.02,75.971,0.79915527]
[1771943523571,11.81281893,76.0,75.971,0.79915527]
[1771943523767,11.81281893,76.03,75.991,0.79915527]
[1771943524072,46.00481078,76.079,75.989,0.79915527]
[1771943524073,11.81281893,76.02,75.989,0.79915527]
[1771943524474,11.81281893,76.06,76.011,0.79915527]
[1771943524672,11.81281893,76.07,76.03,11.81281893]
[1771943524972,11.81281893,76.09,76.061,0.79915527]
[1771943525153,11.81281893,76.11,76.071,0.79915527]
[1771943525354,11.81281893,76.1,76.071,0.79915527]
[1771943525659,11.81281893,76.11,76.07,11.81281893]
[1771943525859,11.81281893,76.09,76.041,46.02780078]
[1771943526055,11.81281893,76.08,76.041,46.02780078]
[1771943526254,11.81281893,76.06,76.02,11.81281893]
[1771943526553,3.69383402,76.091,76.03,11.81281893]
[1771943526554,0.78777489,76.069,76.03,11.81281893]
[1771943526748,13.14767248,76.06,76.021,13.15426]
[1771943526952,11.81281893,76.04,75.999,46.05323753]
[1771943527172,11.81281893,76.03,75.999,13.15806786]
[1771943527553,11.81281893,76.04,76.001,0.77570732]
[1771943527772,11.81281893,76.03,76.001,0.77570732]
[1771943527979,11.81281893,76.03,75.99,11.81281893]
[1771943528156,11.81281893,76.04,76.001,0.77570732]
[1771943528361,0.78777489,76.049,76.0,12.58852625]
[1771943528575,46.01646027,76.06,76.0,12.58852625]
[1771943528576,12.60059382,76.04,76.0,12.58852625]
[1771943528773,13.15114612,76.039,76.0,12.58852625]
[1771943528975,11.81281893,76.03,75.992,0.77570732]
[1771943529183,11.81281893,76.03,75.991,13.15945309]
[1771943529184,11.81281893,76.03,76.001,0.77570732]
[1771943529472,11.81281893,76.03,75.992,0.77570732]
[1771943529780,11.81281893,76.03,75.947,52.6680089]
[1771943529781,11.81281893,76.01,75.973,13.93811364]
[1771943530161,11.81281893,76.0,75.973,0.77570732]
[1771943530370,11.81281893,76.0,75.961,13.16465028]
[1771943530679,0.78777489,75.979,75.938,0.77570732]
[1771943530980,11.81281893,75.97,75.939,13.16846416]
[1771943531154,52.63203302,76.0,75.934,0.235126]
[1771943531155,52.61977597,76.018,75.934,13.4043001]
[1771943531353,0.78777489,76.016,75.961,0.77570732]
[1771943531554,13.15495218,76.017,75.98,11.81281893]
[1771943531780,0.78777489,76.025,75.981,0.77570732]
[1771943532080,11.81281893,76.01,75.98,0.77570732]
[1771943532267,11.81281893,76.01,75.97,11.81281893]
[1771943532268,0.78777489,76.009,75.97,11.81281893]
[1771943532479,12.60059382,76.02,75.971,0.77570732]
[1771943532782,11.81281893,75.98,75.935,0.77570732]
[1771943533079,0.78777489,76.017,75.961,0.77570732]
[1771943533260,0.78777489,76.017,75.971,0.77570732]
[1771943533261,11.81281893,76.01,75.971,0.77570732]
[1771943533459,0.78777489,76.017,75.941,204.10581896]
[1771943533460,11.81281893,76.0,75.945,0.77570732]
[1771943533671,11.81281893,76.0,75.961,0.77570732]
[1771943533975,11.81281893,76.01,75.971,0.77570732]
[1771943534187,11.81281893,76.0,75.971,0.77570732]
[1771943534370,11.81281893,76.0,75.941,151.43334955]
[1771943534371,11.81281893,75.99,75.957,0.77570732]
[1771943534571,0.78777489,75.999,75.96,11.81281893]
[1771943534772,11.81281893,75.98,75.942,0.77570732]
[1771943535080,11.81281893,75.97,75.944,0.77570732]
[1771943535394,11.81281893,75.96,75.932,13.94531831]
[1771943535679,11.81281893,75.96,75.92,11.91281893]
[1771943535680,11.81281893,75.98,75.941,0.77570732]
[1771943536177,13.15979944,75.989,75.951,0.77570732]
[1771943536356,0.78777489,75.978,75.94,0.77570732]
[1771943536559,11.81281893,75.98,75.941,0.77570732]
[1771943536971,13.16153147,75.979,75.943,0.77570732]
[1771943537195,13.16153147,75.979,75.942,13.16794395]
[1771943537196,11.81281893,76.03,75.971,0.77570732]
[1771943537364,11.81281893,76.02,75.971,0.77570732]
[1771943537568,11.81281893,76.01,75.97,12.58852625]
[1771943537887,11.81281893,76.03,75.991,0.77570732]
[1771943538057,11.81281893,76.02,75.991,0.77570732]
[1771943538258,11.81281893,76.03,75.991,0.77570732]
[1771943538475,0.78777489,76.06,76.0,11.81281893]
[1771943538680,11.81281893,76.04,76.001,0.77570732]
[1771943539077,11.81281893,76.05,76.011,0.77570732]
[1771943539379,13.14941682,76.049,76.011,0.77570732]
[1771943539593,78.7564083,76.185,76.04,11.81281893]
[1771943539594,13.14561396,76.071,76.04,11.81281893]
[1771943539888,0.78777489,76.049,76.001,0.77570732]
[1771943540178,0.78777489,76.049,76.011,0.77570732]
[1771943540387,32.86514378,76.069,76.04,11.81281893]
[1771943540680,0.78777489,76.068,76.03,12.58852625]
[1771943541075,46.0120683,76.067,76.031,0.77570732]
[1771943541282,13.14250417,76.089,76.051,0.77570732]
[1771943541465,45.9987646,76.089,76.06,11.81281893]
[1771943541661,13.13801484,76.115,76.071,0.77570732]
[1771943541876,13.33718547,76.12,76.09,12.58852625]
[1771943542081,57.99288406,76.12,76.08,11.81281893]
[1771943542381,57.99288406,76.12,76.07,11.81281893]
[1771943542382,11.81281893,76.11,76.07,11.81281893]
[1771943542583,0.78777489,76.119,76.081,0.77570732]
[1771943543079,45.98123965,76.118,76.081,0.77570732]
[1771943543278,13.13749704,76.118,76.09,11.81281893]
[1771943543480,13.13214881,76.149,76.11,11.81281893]
[1771943543664,11.81281893,76.14,76.1,11.81281893]
[1771943543867,13.13214881,76.149,76.12,11.81281893]
[1771943544285,0.78777489,76.148,76.11,11.81281893]
[1771943544491,45.96252084,76.149,76.12,11.81281893]
[1771943544669,45.96252084,76.149,76.111,0.78888165]
[1771943544862,13.1304245,76.159,76.13,11.81281893]
[1771943545062,32.81990786,76.174,76.15,11.81281893]
[1771943545284,13.1252543,76.189,76.151,0.78158362]
[1771943545583,13.1252543,76.189,76.103,3.69383402]
[1771943545584,0.75203995,76.179,76.14,11.81281893]
[1771943545792,0.75203995,76.179,76.15,11.81281893]
[1771943546082,32.81455427,76.186,76.16,11.81281893]
[1771943546291,11.81281893,76.2,76.128,45.97519966]
[1771943546292,13.12216399,76.207,76.18,11.81281893]
[1771943546498,13.12216399,76.207,76.17,11.81281893]
[1771943547092,13.1202603,76.218,76.18,25.72111888]
[1771943547296,13.1202603,76.218,76.181,0.78158362]
[1771943547464,11.81281893,76.24,76.201,0.78158362]
[1771943547666,13.11664633,76.239,76.21,11.81281893]
[1771943548182,45.90826216,76.239,76.201,0.78158362]
[1771943548484,12.56485888,76.22,76.18,11.81281893]
[1771943548786,12.56485888,76.22,76.127,52.54368099]
[1771943548787,0.75203995,76.209,76.17,11.81281893]
[1771943548965,0.75203995,76.199,76.162,0.78158362]
[1771943549168,0.75203995,76.199,76.098,52.5636999]
[1771943549169,3.69383402,76.187,76.109,13.13905057]
[1771943549365,203.4174125,76.198,76.13,11.81281893]
[1771943549366,11.81281893,76.17,76.13,11.81281893]
[1771943549576,0.75203995,76.159,76.12,11.81281893]
[1771943549883,255.91222863,76.198,76.11,11.81281893]
[1771943549884,0.75203995,76.149,76.11,11.81281893]
[1771943550089,0.55203995,76.149,76.101,0.78158362]
[1771943550284,11.81281893,76.15,76.111,0.78158362]
[1771943550485,11.81281893,76.16,76.12,11.81281893]
[1771943550689,11.81281893,76.16,76.121,0.78158362]
[1771943550996,11.81281893,76.17,76.121,0.78158362]
[1771943551285,3.69383402,76.177,76.121,0.78158362]
[1771943551286,20.3175982,76.16,76.121,0.78158362]
[1771943551469,20.3175982,76.16,76.086,3.69383402]
[1771943551470,20.3175982,76.16,76.112,0.78158362]
[1771943551675,150.96618355,76.176,76.1,20.3175982]
[1771943551676,20.3175982,76.15,76.1,20.3175982]
[1771943551890,203.47616044,76.176,76.042,52.60196226]
[1771943551891,20.3175982,76.13,76.087,0.78158362]
[1771943552066,0.75203995,76.129,76.087,0.78158362]
[1771943552266,255.98613733,76.176,76.101,0.78158362]
[1771943552267,20.3175982,76.15,76.101,0.78158362]
[1771943552468,20.3175982,76.15,76.111,0.78158362]
[1771943552998,21.06963815,76.17,76.13,20.3175982]
[1771943553204,0.75203995,76.159,76.121,0.78158362]
[1771943553487,0.75203995,76.148,76.111,0.78158362]
[1771943553674,33.57755451,76.161,76.13,20.3175982]
[1771943553872,0.75203995,76.161,76.13,20.3175982]
[1771943554071,0.75203995,76.159,76.12,20.3175982]
[1771943554269,0.75203995,76.159,76.121,0.78158362]
[1771943554461,0.75203995,76.159,76.11,20.3175982]
[1771943554666,20.3175982,76.15,76.11,20.3175982]
[1771943554896,45.95588235,76.16,76.121,0.78158362]
[1771943555191,45.95588235,76.16,76.089,164.28130215]
[1771943555192,13.1302521,76.16,76.131,0.78158362]
[1771943555365,13.12835593,76.171,76.15,20.3175982]
[1771943555572,20.3175982,76.2,76.161,0.78158362]
[1771943555768,13.11928088,76.224,76.19,20.3175982]
[1771943556166,21.06963815,76.26,76.211,0.78158362]
[1771943556471,20.3175982,76.24,76.2,20.3175982]
[1771943556676,0.75203995,76.245,76.2,20.3175982]
[1771943556884,0.75203995,76.239,76.21,20.3175982]
[1771943557086,0.75203995,76.253,76.22,20.3175982]
[1771943557280,0.75203995,76.248,76.21,20.27078669]
[1771943557694,45.90224133,76.249,76.19,20.27078669]
[1771943557695,0.75203995,76.229,76.19,20.27078669]
[1771943557879,0.75203995,76.209,76.17,20.27078669]
[1771943558081,0.75203995,76.199,76.16,20.27078669]
[1771943558389,21.02282664,76.19,76.15,20.27078669]
[1771943558686,21.02282664,76.19,76.141,0.2]
[1771943558687,20.27078669,76.17,76.141,0.2]
[1771943559066,0.75203995,76.179,76.141,0.2]
[1771943559270,45.94502349,76.178,76.141,0.98158362]
[1771943559473,0.75203995,76.177,76.141,0.2]
[1771943560292,20.27078669,76.17,76.141,0.2]
[1771943560594,0.75203995,76.149,76.131,0.2]
[1771943560791,0.75203995,76.149,76.11,20.27078669]
[1771943561091,0.75203995,76.149,76.017,20.27078669]
[1771943561092,20.27078669,76.13,76.091,0.78158362]
[1771943561292,20.27078669,76.14,76.101,0.78158362]
[1771943561594,20.27078669,76.13,76.095,0.78158362]
[1771943561895,0.75203995,76.137,76.1,20.27078669]
[1771943562192,13.1304245,76.159,76.12,20.27078669]
[1771943562389,0.75203995,76.158,76.12,20.27078669]
[1771943562974,13.1304245,76.159,76.13,20.27078669]
[1771943563179,13.1304245,76.159,76.131,0.78158362]
[1771943563585,21.02282664,76.16,76.12,20.27078669]
[1771943563793,45.95045228,76.169,76.114,13.13818745]
[1771943563794,20.27078669,76.15,76.114,13.13818745]
[1771943563987,13.12180976,76.209,76.143,3.69383402]
[1771943564193,30.43902218,76.38,76.2,20.27078669]
[1771943564385,20.27078669,76.25,76.21,20.27078669]
[1771943564574,20.27078669,76.22,76.18,20.27078669]
[1771943564777,20.27078669,76.21,76.17,27.12198144]
[1771943565100,0.84286697,76.223,76.19,20.27078669]
[1771943565391,39.37,76.315,76.17,6.85119475]
[1771943565392,0.84286697,76.238,76.2,20.27078669]
[1771943565605,20.27078669,76.25,76.22,20.27078669]
[1771943565811,13.11234953,76.264,76.23,20.27078669]
[1771943565975,13.11046613,76.275,76.24,20.27078669]
[1771943566175,20.27078669,76.27,76.204,3.69383402]
[1771943566375,0.84286697,76.269,76.23,20.27078669]
[1771943566574,0.84286697,76.269,76.24,20.27078669]
[1771943566992,0.84286697,76.31,76.26,20.27078669]
[1771943567200,20.27078669,76.3,76.26,20.27078669]
[1771943567418,0.84286697,76.289,76.24,20.27078669]
[1771943567699,13.10598812,76.301,76.27,20.27078669]
[1771943567877,0.84286697,76.302,76.27,20.27078669]
[1771943568199,0.84286697,76.301,76.27,14.81651142]
[1771943568376,0.84286697,76.299,76.27,20.27078669]
[1771943568911,0.84286697,76.299,76.26,20.27078669]
[1771943569091,13.1058393,76.302,76.27,20.27078669]
[1771943569287,13.1058393,76.302,76.28,20.27078669]
[1771943569487,33.37694658,76.3,76.26,20.27078669]
[1771943569793,33.37694658,76.3,76.21,52.48623852]
[1771943569794,0.84286697,76.289,76.24,20.27078669]
[1771943569981,0.84286697,76.269,76.23,20.27078669]
[1771943570500,0.84286697,76.269,76.24,20.27078669]
[1771943570980,20.27078669,76.27,76.23,20.27078669]
[1771943571183,0.84286697,76.292,76.25,20.27078669]
[1771943571384,13.10615989,76.3,76.27,20.27078669]
[1771943571577,0.84286697,76.297,76.26,33.38372776]
[1771943571897,0.84286697,76.297,76.27,20.27078669]
[1771943572088,0.84286697,76.312,76.28,20.27078669]
[1771943572277,20.47078669,76.32,76.29,20.27078669]
[1771943572278,13.10351102,76.316,76.29,20.27078669]
[1771943572479,0.84286697,76.315,76.28,20.27078669]
[1771943572693,0.84286697,76.315,76.29,20.27078669]
[1771943573577,0.2,76.32,76.29,20.27078669]
[1771943573785,0.84286697,76.309,76.27,20.27078669]
[1771943573992,0.84286697,76.309,76.28,20.27078669]
[1771943574417,0.84286697,76.309,76.27,20.27078669]
[1771943574781,0.84286697,76.318,76.28,20.27078669]
[1771943575186,0.2,76.32,76.3,20.27078669]
[1771943575782,0.2,76.32,76.301,13.10598812]
[1771943576092,0.84286697,76.319,76.28,20.27078669]
[1771943576395,0.84286697,76.309,76.27,20.27078669]
[1771943576602,3.69383402,76.277,76.23,20.27078669]
[1771943576902,0.84286697,76.259,76.22,33.59058416]
[1771943577076,0.84286697,76.249,76.2,20.47078669]
[1771943577281,0.84286697,76.229,76.2,0.2]
[1771943577481,20.27078669,76.23,76.2,0.2]
[1771943577695,0.79884759,76.233,76.2,33.59398176]
[1771943577901,20.27078669,76.23,76.2,13.32319507]
[1771943578199,0.79884759,76.209,76.17,20.27078669]
[1771943578500,20.27078669,76.22,76.18,20.27078669]
[1771943578675,0.79884759,76.219,76.169,0.43880585]
[1771943578879,20.27078669,76.22,76.18,20.27078669]
[1771943579075,0.79884759,76.219,76.18,20.27078669]
[1771943579279,21.06963428,76.21,76.17,20.27078669]
[1771943579503,20.27078669,76.21,76.17,20.27078669]
[1771943579996,13.12008816,76.219,76.181,13.12663262]
[1771943580301,0.79884759,76.223,76.19,20.27078669]
[1771943580501,13.11816928,76.231,76.2,20.27078669]
[1771943580715,20.27078669,76.23,76.19,20.27078669]
[1771943580916,0.79884759,76.209,76.17,20.27078669]
[1771943581208,0.79884759,76.199,76.16,20.27078669]
[1771943581499,21.06963428,76.21,76.18,20.27078669]
[1771943581705,0.79884759,76.227,76.18,20.27078669]
[1771943581892,0.79884759,76.219,76.157,0.44494152]
[1771943582081,20.27078669,76.21,76.159,0.44494152]
[1771943582283,20.27078669,76.21,76.17,20.27078669]
[1771943582486,45.92091106,76.218,76.14,20.27078669]
[1771943582487,20.27078669,76.18,76.14,20.27078669]
[1771943582797,0.79884759,76.179,76.14,20.27078669]
[1771943583201,20.27078669,76.19,76.15,20.27078669]
[1771943583504,0.79884759,76.195,76.16,20.27078669]
[1771943583707,0.79884759,76.179,76.15,20.27078669]
[1771943583932,0.79884759,76.179,76.14,20.27078669]
[1771943584108,20.27078669,76.2,76.16,33.40101522]
[1771943584284,13.12374116,76.198,76.16,33.40101522]
[1771943584489,13.12374116,76.198,76.143,0.44791204]
[1771943584490,0.79884759,76.189,76.15,20.27078669]
[1771943584698,0.79884759,76.169,76.13,20.47078669]
[1771943584989,0.79884759,76.169,76.131,45.97338796]
[1771943585295,0.79884759,76.169,76.13,20.47078669]
[1771943585489,13.12374116,76.198,76.13,20.47078669]
[1771943585490,0.79884759,76.149,76.13,1e-08]
[1771943585895,20.27078669,76.16,76.13,1e-08]
[1771943586201,13.12801123,76.173,76.14,20.27078669]
[1771943586909,0.79884759,76.169,76.131,13.1352537]
[1771943587112,0.79884759,76.169,76.13,20.2707867]
[1771943587610,20.27078669,76.14,76.09,20.27078669]
[1771943587825,0.79884759,76.151,76.12,20.27078669]
[1771943588120,13.13099071,76.156,76.12,20.27078669]
[1771943588316,0.79884759,76.155,76.12,20.27078669]
[1771943589017,13.1304245,76.159,76.11,46.73969783]
[1771943589215,0.79884759,76.151,76.12,20.27078669]
[1771943589414,13.92844207,76.164,76.13,20.27078669]
[1771943589624,0.79884759,76.159,76.11,66.55684483]
[1771943589820,0.79884759,76.159,76.12,20.27078669]
[1771943590210,13.9293973,76.159,76.121,13.13697928]
[1771943590408,13.9293973,76.159,76.11,0.3]
[1771943590409,20.27078669,76.15,76.11,0.3]
[1771943590606,0.79884759,76.119,76.07,20.27078669]
[1771943590809,20.27078669,76.11,76.07,20.27078669]
[1771943591436,0.79884759,76.119,76.08,20.27078669]
[1771943592211,0.79884759,76.131,76.09,20.27078669]
[1771943592403,33.4046152,76.14,76.1,20.27078669]
[1771943592604,0.79884759,76.142,76.11,20.27078669]
[1771943592816,20.27078669,76.14,76.1,20.27078669]
[1771943593202,0.79884759,76.139,76.1,20.27078669]
[1771943593409,0.79884759,76.129,76.09,20.27078669]
[1771943593624,0.79884759,76.129,76.081,46.00360142]
[1771943593625,21.06963428,76.14,76.1,20.27078669]
[1771943594128,13.13404607,76.138,76.101,13.14043179]
[1771943594325,20.27078669,76.12,76.08,20.27078669]
[1771943594511,45.96916125,76.138,76.072,13.14544116]
[1771943594512,0.79884759,76.109,76.072,13.14544116]
[1771943594710,20.27078669,76.1,76.072,13.14544116]
[1771943594923,0.79884759,76.109,76.072,13.14544116]
[1771943595425,151.04152983,76.138,76.05,20.27078669]
[1771943595426,20.27078669,76.09,76.05,20.27078669]
[1771943595608,0.79884759,76.09,76.06,20.27078669]
[1771943596210,0.79884759,76.09,76.023,3.69383402]
[1771943596211,0.79884759,76.088,76.05,20.27078669]